bitfinex/quotes_ETHUSD_20240530
["timestamp","ask_amount","ask_price","bid_price","bid_amount"]
[1717093758416,2.62578,3808.4,3807.7,1.57638799]
[1717093758618,2.62578,3808.4,3807.8,0.2837803]
[1717093758823,2.62578,3808.4,3807.9,0.2837803]
[1717093759113,0.786,3808.0,3807.8,0.28379369]
[1717093759317,3.1865,3807.9,3807.6,7.3]
[1717093759532,2.62598,3808.1,3807.5,19.49]
[1717093762419,2.62575,3808.5,3807.6,2.62632]
[1717093762619,0.786,3808.4,3807.6,2.62632]
[1717093765745,2.62575,3808.5,3807.3,0.2837991]
[1717093765746,3.3698,3808.8,3807.8,3.41212]
[1717093766328,2.62523,3809.2,3808.3,2.62578]
[1717093766720,0.786,3809.0,3808.3,2.62578]
[1717093767133,2.62523,3809.2,3808.3,2.62578]
[1717093767334,0.786,3809.0,3808.3,2.62578]
[1717093769649,3.1481,3809.4,3808.3,2.62578]
[1717093769991,3.1481,3809.4,3808.5,2.6257]
[1717093770149,5.7784,3810.0,3808.8,2.62546]
[1717093770548,0.786,3809.7,3808.8,2.62546]
[1717093771162,5.7784,3810.0,3808.8,2.62546]
[1717093771359,0.786,3809.7,3808.8,3.32369]
[1717093771760,6.3824847,3810.0,3808.8,3.32369]
[1717093771976,5.7784,3810.0,3808.8,0.69823]
[1717093772178,3.4107,3810.0,3809.1,2.62524]
[1717093772702,0.786,3809.8,3809.1,2.62524]
[1717093774101,0.786,3809.7,3809.1,2.62524]
[1717093774804,0.786,3809.9,3809.1,2.62524]
[1717093775307,0.786,3809.9,3809.1,2.966418]
[1717093775991,2.6247,3810.0,3809.1,2.966418]
[1717093777426,0.786,3809.2,3808.7,7.3]
[1717093777709,0.786,3809.1,3808.5,2.62568]
[1717093778071,0.786,3809.3,3808.5,2.62568]
[1717093778710,0.786,3809.1,3808.5,2.62568]
[1717093783017,0.786,3809.3,3808.5,2.62568]
[1717093785393,2.62523,3809.2,3808.5,2.62568]
[1717093785595,0.786,3809.1,3808.5,2.62568]
[1717093785791,2.625,3809.6,3808.5,2.62568]
[1717093786106,0.786,3809.1,3808.5,2.62568]
[1717093787007,0.786,3808.9,3808.5,2.62568]
[1717093789941,0.786,3808.9,3808.2,7.3]
[1717093790247,0.786,3808.7,3808.2,7.3]
[1717093791842,2.887676,3809.3,3808.2,7.3]
[1717093792033,0.786,3808.9,3808.2,7.3]
[1717093792947,0.786,3808.9,3808.3,2.62583]
[1717093799094,3.2746,3809.1,3808.3,2.62583]
[1717093799095,0.786,3808.7,3808.3,2.62583]
[1717093800392,0.786,3808.5,3807.8,41.62617]
[1717093800556,1.127156,3808.5,3807.8,2.62617]
[1717093803396,0.786,3808.3,3807.8,2.62617]
[1717093803751,0.341156,3808.5,3807.8,2.62617]
[1717093803956,1.127156,3808.5,3807.8,2.62617]
[1717093804276,0.341156,3808.5,3807.8,2.62617]
[1717093804475,1.127156,3808.5,3807.8,2.62617]
[1717093805084,0.786,3808.3,3807.8,2.62617]
[1717093807818,0.2887676,3809.2,3807.8,2.62617]
[1717093807819,5.8704,3809.6,3808.6,2.62562]
[1717093807987,0.786,3809.3,3808.6,2.62562]
[1717093808196,0.786,3809.2,3808.6,2.62562]
[1717093808789,0.786,3809.4,3808.6,2.62562]
[1717093808990,2.62467,3810.0,3808.9,2.62541]
[1717093809220,2.62467,3810.0,3809.0,0.0525014]
[1717093809410,0.786,3809.7,3808.9,2.62541]
[1717093809796,0.786,3809.5,3808.9,2.62541]
[1717093810225,2.6249,3809.7,3808.9,2.62541]
[1717093810424,3.171,3810.1,3808.5,2.62564]
[1717093810425,0.786,3809.1,3808.5,2.62564]
[1717093810623,0.786,3808.6,3808.4,7.3]
[1717093810832,0.786,3808.6,3808.1,2.62594]
[1717093812409,0.786,3808.8,3808.1,2.62594]
[1717093812999,0.786,3808.6,3808.1,2.62594]
[1717093815915,0.786,3808.2,3807.8,7.3]
[1717093816123,0.786,3807.9,3807.8,7.3]
[1717093818460,2.62586,3808.3,3807.8,7.3]
[1717093819747,2.62586,3808.3,3807.3,2.62647]
[1717093819924,2.62611,3808.0,3807.2,7.3]
[1717093827254,5.78563,3808.4,3807.3,2.62652]
[1717093827458,2.62583,3808.4,3807.3,2.62652]
[1717093828544,4.515,3808.1,3807.2,7.3]
[1717093828766,3.78723173,3808.0,3807.2,7.3]
[1717093830286,3.78723173,3808.0,3806.7,7.3]
[1717093830287,1.889,3807.3,3806.7,7.3]
[1717093830495,1.889,3807.3,3806.5,2.62703]
[1717093831136,4.51553,3807.3,3806.5,2.62703]
[1717093836719,2.62653,3807.3,3806.5,2.62703]
[1717093840442,0.787,3807.1,3806.5,2.62703]
[1717093841991,0.787,3806.9,3806.5,2.62703]
[1717093842933,2.62653,3807.3,3806.5,2.62703]
[1717093843104,0.787,3807.1,3806.5,2.62703]
[1717093845942,2.62653,3807.3,3806.5,2.62703]
[1717093846144,0.787,3807.1,3806.5,2.62703]
[1717093848088,2.62653,3807.3,3806.5,2.62703]
[1717093848291,0.787,3807.0,3806.5,2.62703]
[1717093849492,0.787,3807.1,3806.5,2.62703]
[1717093850476,6.41328173,3808.0,3807.0,2.62667]
[1717093850665,0.787,3807.9,3807.0,2.62667]
[1717093850866,5.96005,3808.0,3807.0,2.62667]
[1717093851204,5.96005,3808.0,3807.2,2.62658]
[1717093852001,0.787,3807.9,3807.2,2.62658]
[1717093854299,0.787,3807.7,3807.2,2.62658]
[1717093856691,5.96005,3808.0,3807.2,2.62658]
[1717093857010,0.787,3807.7,3807.2,2.62658]
[1717093857381,2.62605,3808.0,3807.2,2.62658]
[1717093857589,0.787,3807.8,3807.2,2.62658]
[1717093858310,2.62605,3808.0,3807.2,2.62658]
[1717093858550,0.787,3807.9,3807.2,2.62658]
[1717093859018,2.62585,3808.3,3807.4,2.62642]
[1717093859312,0.787,3807.5,3807.4,2.62642]
[1717093859509,0.787,3807.5,3807.3,0.41133003]
[1717093861420,2.62618,3807.8,3807.3,0.41133003]
[1717093861599,0.787,3807.4,3807.3,0.41133003]
[1717093861790,2.62618,3807.8,3807.3,0.41133003]
[1717093861990,0.787,3807.5,3807.3,0.41133003]
[1717093862438,2.62618,3807.8,3807.3,0.41133003]
[1717093863316,0.592278,3807.7,3807.3,0.41133003]
[1717093865331,2.62618,3807.8,3807.3,0.41133003]
[1717093866098,3.2966,3808.0,3807.3,0.41133003]
[1717093872760,4.51498,3808.2,3807.3,0.41133003]
[1717093873059,4.51498,3808.2,3807.3,3.48903003]
[1717093873060,2.62598,3808.2,3807.3,3.48903003]
[1717093873233,0.451498,3808.1,3807.3,0.41133003]
[1717093873418,0.451498,3808.1,3807.4,2.62645]
[1717093875846,3.115,3807.9,3807.4,2.62645]
[1717093876051,3.115,3807.9,3807.3,0.41133003]
[1717093879275,2.6262,3807.8,3807.3,0.41133003]
[1717093880967,2.62634,3807.6,3807.3,0.41133003]
[1717093881235,4.51534,3807.6,3807.3,0.41133003]
[1717093881383,0.451534,3807.5,3807.3,0.41133003]
[1717093884392,0.787,3807.4,3807.3,0.41133003]
[1717093884944,2.62654,3807.3,3806.6,7.3]
[1717093885115,0.787,3807.1,3806.4,2.6271]
[1717093886263,0.787,3807.2,3806.4,2.6271]
[1717093888843,0.787,3806.8,3806.2,7.71141364]
[1717093889223,0.787,3807.0,3806.2,7.71141364]
[1717093889922,0.787,3806.8,3806.2,7.71141364]
[1717093890232,0.787,3806.8,3806.2,0.41141364]
[1717093892661,0.787,3806.6,3806.2,0.41141364]
[1717093892807,2.6269,3806.8,3806.2,0.41141364]
[1717093893012,3.4139,3806.8,3806.2,0.41141364]
[1717093893759,0.787,3806.6,3806.2,0.41141364]
[1717093896750,2.6269,3806.8,3806.3,3.0248]
[1717093897751,2.62637,3807.6,3806.6,2.62695]
[1717093897958,2.62612,3807.9,3806.8,2.62686]
[1717093898256,2.62612,3807.9,3806.9,0.05252804]
[1717093898257,3.41312,3807.9,3806.9,0.05252804]
[1717093898442,14.8346,3810.1,3807.0,0.787]
[1717093898443,2.6259,3808.3,3807.0,0.787]
[1717093898764,0.787,3808.1,3807.1,3.2031]
[1717093899180,0.787,3807.9,3807.1,3.2031]
[1717093899988,0.787,3807.9,3807.3,2.62652]
[1717093899989,0.75215221,3807.9,3807.3,2.62652]
[1717093900666,0.787,3807.7,3807.3,2.62652]
[1717093901252,0.787,3807.5,3806.9,2.62676]
[1717093901571,3.2754,3807.8,3806.9,2.62676]
[1717093901572,0.787,3807.3,3806.9,2.62676]
[1717093901755,0.787,3807.5,3806.9,2.62676]
[1717093902065,2.62607,3808.0,3807.2,2.62658]
[1717093902361,0.787,3807.7,3807.3,0.262658]
[1717093903792,0.787,3807.9,3807.3,0.262658]
[1717093904601,2.62607,3808.0,3807.3,0.262658]
[1717093904905,0.787,3807.8,3807.3,0.262658]
[1717093905078,0.787,3807.8,3807.4,0.2889238]
[1717093908885,2.62553,3808.8,3807.8,2.62617]
[1717093909203,3.0,3809.0,3808.1,2.62595]
[1717093909392,3.1957,3809.4,3808.1,2.62595]
[1717093909587,0.787,3808.8,3808.1,2.62595]
[1717093909791,3.1957,3809.4,3808.1,2.62595]
[1717093910001,0.787,3808.7,3808.1,2.62595]
[1717093910202,0.787,3808.7,3808.2,0.580595]
[1717093910885,3.1957,3809.4,3808.1,2.62595]
[1717093910886,0.787,3808.5,3808.1,2.62595]
[1717093911299,2.62545,3808.9,3808.1,2.62595]
[1717093911498,2.62519,3809.3,3808.1,2.62595]
[1717093911850,0.787,3808.7,3808.1,2.62595]
[1717093912301,2.62519,3809.3,3808.1,2.62595]
[1717093912496,2.6253,3809.1,3808.1,2.62595]
[1717093914338,2.62552,3808.8,3807.9,3.18]
[1717093916388,2.62552,3808.8,3808.0,2.62602]
[1717093918636,7.55018,3809.2,3808.0,2.62602]
[1717093919550,7.55018,3809.2,3808.3,2.62584]
[1717093919726,8.305198,3809.2,3808.3,2.62584]
[1717093920059,5.268298,3809.2,3808.4,3.1119]
[1717093921918,5.268298,3809.2,3808.5,2.62569]
[1717093921919,4.51328,3809.2,3808.5,2.62569]
[1717093923337,2.62501,3809.5,3808.5,2.62569]
[1717093923834,2.62521,3809.3,3808.5,2.62569]
[1717093925421,1.888,3809.2,3808.5,2.62569]
[1717093927975,2.62529,3809.1,3808.4,3.1119]
[1717093928125,3.076619,3809.1,3808.1,13.08913]
[1717093930354,2.62529,3809.1,3808.1,13.08913]
[1717093932761,1.888,3808.8,3808.1,9.92593]
[1717093933934,1.888,3808.8,3808.1,2.62593]
[1717093934271,2.62587,3808.3,3807.7,7.3]
[1717093934476,0.787,3807.8,3807.7,7.3]
[1717093934628,0.787,3807.8,3807.2,3.2226]
[1717093934825,0.787,3807.5,3807.2,3.2226]
[1717093935044,0.787,3807.5,3807.0,7.3]
[1717093935243,0.787,3807.5,3807.3,2.62647]
[1717093937440,0.787,3807.5,3807.0,7.3]
[1717093937675,0.787,3807.3,3807.0,7.3]
[1717093939933,5.65757,3808.0,3807.0,7.3]
[1717093940135,0.787,3807.6,3807.1,2.62662]
[1717093941517,0.787,3807.4,3807.1,2.62662]
[1717093945229,5.65757,3808.0,3806.8,2.62687]
[1717093945230,0.787,3807.2,3806.8,2.62687]
[1717093945528,0.787,3807.0,3806.8,2.62687]
[1717093947028,0.787,3807.2,3806.8,2.62687]
[1717093951355,0.787,3807.0,3806.5,9.92708]
[1717093954142,0.787,3806.8,3806.5,9.92708]
[1717093954556,0.787,3807.0,3806.5,2.62708]
[1717093960753,0.787,3806.8,3806.5,2.62708]
[1717093962256,0.787,3806.8,3806.3,0.41138648]
[1717093962572,3.2306,3807.4,3806.3,0.41138648]
[1717093962573,0.787,3806.6,3806.3,0.41138648]
[1717093963251,0.787,3806.8,3806.3,0.41138648]
[1717093964558,0.787,3806.6,3806.3,0.41138648]
[1717093969558,0.787,3806.4,3806.3,0.41138648]
[1717093970080,0.787,3806.4,3805.9,7.3]
[1717093971850,3.1709,3806.7,3805.9,7.3]
[1717093972174,0.787,3806.4,3805.9,7.3]
[1717093975050,0.787,3806.4,3805.8,3.03896387]
[1717093977683,3.1709,3806.7,3805.8,3.03896387]
[1717093977684,0.787,3806.1,3805.8,3.03896387]
[1717093979178,2.62704,3806.6,3805.8,3.03896387]
[1717093979476,0.787,3806.2,3805.8,3.03896387]
[1717093982776,0.787,3806.5,3805.8,3.03896387]
[1717093984700,0.787,3806.3,3805.8,3.03896387]
[1717093988666,0.787,3806.1,3805.8,0.41146387]
[1717093989676,0.787,3805.9,3805.7,0.1262713]
[1717093989887,3.0316,3806.2,3805.7,0.1262713]
[1717093990084,0.787,3806.0,3805.7,0.1262713]
[1717093990293,1.16886,3806.0,3805.7,0.1262713]
[1717093991007,3.79629,3806.0,3805.7,0.1262713]
[1717093992170,3.41443,3806.0,3805.7,0.1262713]
[1717093994307,2.62743,3806.0,3805.7,0.1262713]
[1717093994491,3.41443,3806.0,3805.7,0.1262713]
[1717094000426,0.787,3805.8,3805.7,0.1262713]
[1717094005335,0.80431734,3805.8,3805.7,0.1262713]
[1717094005497,1.13017473,3805.8,3805.7,0.1262713]
[1717094008238,4.34647473,3805.8,3805.7,0.1262713]
[1717094009078,0.34317473,3805.8,3805.7,0.1262713]
[1717094009231,0.787,3805.9,3805.7,0.1262713]
[1717094014693,3.8096,3805.9,3805.7,0.1262713]
[1717094016006,2.62756,3805.8,3805.7,0.1262713]
[1717094017003,3.41456,3805.8,3805.7,0.1262713]
[1717094017204,4.058276,3805.8,3805.7,0.1262713]
[1717094017867,3.271276,3805.8,3805.7,0.1262713]
[1717094018046,4.058276,3805.8,3805.7,0.1262713]
[1717094025756,3.271276,3805.8,3805.7,0.1262713]
[1717094025942,4.058276,3805.8,3805.7,0.1262713]
[1717094029775,7.058276,3805.8,3805.7,0.1262713]
[1717094030064,9.685836,3805.8,3805.7,0.1262713]
[1717094030265,12.849336,3805.8,3805.7,0.1262713]
[1717094038766,12.062336,3805.8,3805.7,0.1262713]
[1717094039075,12.849336,3805.8,3805.7,0.1262713]
[1717094040422,10.221776,3805.8,3805.7,0.1262713]
[1717094046518,15.617336,3805.8,3805.7,0.1262713]
[1717094046723,16.167336,3805.8,3805.7,0.1262713]
[1717094046923,15.380336,3805.8,3805.7,0.1262713]
[1717094047129,16.167336,3805.8,3805.7,0.1262713]
[1717094060607,7.058276,3805.8,3805.7,0.1262713]
[1717094060890,5.62756,3805.8,3805.7,0.1262713]
[1717094061034,6.41456,3805.8,3805.7,0.1262713]
[1717094062650,2.62756,3805.8,3805.7,0.1262713]
[1717094062878,3.41456,3805.8,3805.7,0.1262713]
[1717094063173,2.768,3806.8,3805.7,0.1262713]
[1717094063174,2.62735,3806.2,3805.7,0.1262713]
[1717094063386,0.787,3805.8,3805.7,0.1262713]
[1717094066535,2.62819,3804.9,3804.4,7.3]
[1717094066864,0.787,3804.5,3804.4,2.6901]
[1717094068464,2.62861,3804.3,3803.9,2.6527]
[1717094068782,0.787,3804.0,3803.9,2.6527]
[1717094070886,2.62861,3804.3,3803.9,2.6527]
[1717094071063,0.787,3804.0,3803.9,2.6527]
[1717094074243,2.62861,3804.3,3803.9,2.6527]
[1717094074443,0.787,3804.0,3803.9,2.6527]
[1717094075203,0.44781805,3805.9,3803.9,2.91797]
[1717094075362,0.787,3805.1,3804.2,2.5121]
[1717094075562,2.62776,3805.6,3804.7,2.4805]
[1717094075774,0.787,3805.2,3804.7,2.4805]
[1717094076187,0.787,3805.4,3804.7,2.4805]
[1717094076364,0.787,3805.4,3804.8,0.510887]
[1717094077974,2.62776,3805.6,3804.8,0.510887]
[1717094078173,0.787,3805.4,3804.8,0.510887]
[1717094078505,2.62776,3805.6,3804.8,0.510887]
[1717094078710,0.787,3805.4,3804.9,2.8980257]
[1717094078902,2.62776,3805.6,3804.9,2.8980257]
[1717094079103,0.787,3805.4,3804.9,2.8980257]
[1717094089349,0.787,3805.4,3804.9,2.5841]
[1717094091456,2.62776,3805.6,3804.9,2.5841]
[1717094091670,0.787,3805.4,3804.9,2.5841]
[1717094092233,3.41476,3805.6,3804.9,2.5841]
[1717094092641,2.62776,3805.6,3804.9,2.5841]
[1717094092813,2.62776,3805.6,3804.9,3.105347]
[1717094096536,2.62776,3805.6,3804.9,2.5841]
[1717094097872,5.62736,3806.1,3805.1,2.62804]
[1717094098071,5.62736,3806.1,3805.2,2.5014]
[1717094098072,0.787,3805.9,3805.2,2.5014]
[1717094098371,0.787,3805.7,3805.2,2.5014]
[1717094099526,2.62771,3805.6,3805.2,2.5014]
[1717094100799,0.787,3805.5,3805.2,2.5014]
[1717094101699,0.787,3805.5,3805.2,2.38230164]
[1717094101906,0.787,3805.5,3804.9,7.3]
[1717094102055,0.787,3805.0,3804.9,7.3]
[1717094102407,5.29718,3807.1,3804.9,8.637]
[1717094102612,2.62728,3806.3,3805.3,7.3]
[1717094102893,2.62736,3806.1,3805.3,8.087]
[1717094103052,2.62736,3806.1,3805.3,7.3]
[1717094104751,2.62736,3806.1,3805.4,2.6281]
[1717094105999,3.41436,3806.1,3805.4,2.6281]
[1717094106293,2.62736,3806.1,3805.4,2.6281]
[1717094106496,3.41436,3806.1,3805.4,2.6281]
[1717094109003,0.787,3805.9,3805.4,2.6281]
[1717094109586,0.787,3805.7,3805.4,2.6281]
[1717094109805,3.41478,3805.5,3804.9,7.3]
[1717094110009,0.787,3805.2,3804.8,2.5159]
[1717094110926,0.787,3805.4,3804.8,2.5159]
[1717094116189,2.62778,3805.5,3804.8,2.5159]
[1717094116190,0.787,3805.2,3804.8,2.5159]
[1717094116485,0.787,3805.0,3804.8,2.5159]
[1717094118872,0.787,3805.0,3804.5,9.966]
[1717094119727,0.787,3805.0,3804.0,14.048986]
[1717094119728,0.787,3804.6,3804.1,2.62873]
[1717094119963,0.787,3804.4,3804.1,2.62873]
[1717094120343,0.787,3804.6,3804.1,2.62873]
[1717094122953,0.787,3804.4,3804.1,2.62873]
[1717094123466,0.787,3804.4,3804.0,2.469]
[1717094124030,0.787,3804.4,3803.8,2.62894]
[1717094124651,0.787,3804.2,3803.8,2.62894]
[1717094125287,0.787,3804.0,3803.8,2.62894]
[1717094129357,0.787,3804.2,3803.8,2.62894]
[1717094129559,2.62845,3804.6,3803.8,2.62894]
[1717094129768,0.787,3804.5,3803.8,2.62894]
[1717094130099,0.787,3804.3,3803.8,2.62894]
[1717094130397,2.62845,3804.6,3803.8,2.62894]
[1717094130765,0.787,3804.3,3803.8,2.62894]
[1717094131403,2.62816,3805.0,3804.0,5.0808]
[1717094131576,2.62816,3805.0,3804.1,0.05256754]
[1717094131899,0.787,3804.6,3804.0,5.0808]
[1717094132261,0.787,3804.6,3804.0,5.58888]
[1717094132464,0.787,3804.6,3804.0,5.0808]
[1717094132774,0.787,3804.4,3804.0,5.0808]
[1717094134696,0.787,3804.4,3804.0,2.452]
[1717094135002,2.62832,3804.7,3804.0,2.452]
[1717094135202,0.787,3804.6,3804.0,2.452]
[1717094135411,2.62832,3804.7,3804.1,0.508085]
[1717094135581,0.787,3804.6,3804.1,0.508085]
[1717094136100,0.787,3804.4,3804.0,2.452]
[1717094136807,0.787,3804.6,3804.0,2.452]
[1717094137684,0.787,3804.6,3803.9,2.62885]
[1717094140999,0.787,3804.4,3803.9,2.62885]
[1717094148888,0.787,3804.2,3803.9,2.62885]
[1717094151386,0.787,3804.2,3803.6,12.43978]
[1717094152049,0.787,3803.7,3803.3,2.6427]
[1717094154559,0.787,3803.7,3803.0,2.6179]
[1717094156648,0.787,3803.7,3802.9,2.62952]
[1717094156853,3.3234,3803.7,3802.9,2.62952]
[1717094163581,3.3234,3803.7,3803.1,2.62937]
[1717094166213,0.787,3803.5,3803.1,2.62937]
[1717094167320,0.787,3803.2,3802.8,7.3]
[1717094168424,3.3358,3803.2,3802.8,7.3]
[1717094168799,2.5488,3803.2,3802.8,7.3]
[1717094168998,3.3358,3803.2,3802.8,7.3]
[1717094169980,2.5488,3803.7,3802.9,2.62955]
[1717094170327,0.787,3803.5,3802.9,2.62955]
[1717094172213,0.787,3803.6,3802.9,5.08755]
[1717094172591,2.5488,3803.7,3802.9,5.08755]
[1717094172792,2.62874,3804.1,3803.2,2.62936]
[1717094173020,3.41574,3804.1,3803.4,2.3963]
[1717094173329,2.62874,3804.1,3803.3,2.3963]
[1717094173516,0.787,3803.8,3803.2,2.62936]
[1717094176342,0.787,3803.6,3803.2,2.62936]
[1717094176835,2.4689,3803.5,3803.2,2.62936]
[1717094178845,0.787,3803.3,3802.9,2.62956]
[1717094179136,0.787,3803.3,3802.8,7.3]
[1717094179343,0.787,3803.1,3802.8,7.3]
[1717094179512,0.787,3803.3,3802.8,7.3]
[1717094181643,2.4689,3803.5,3802.8,7.3]
[1717094181810,0.787,3803.4,3802.8,7.3]
[1717094183018,0.787,3803.4,3802.6,2.62977]
[1717094184602,5.2465,3804.1,3803.1,3.41643]
[1717094184806,5.2465,3804.1,3803.4,2.6201]
[1717094185001,5.2465,3804.1,3803.3,2.62928]
[1717094185206,0.787,3803.9,3803.3,2.62928]
[1717094186143,5.03131,3804.5,3803.5,2.62914]
[1717094186331,0.787,3804.3,3803.5,2.62914]
[1717094187791,0.787,3804.3,3803.3,8.087]
[1717094187925,0.787,3804.4,3803.8,2.62893]
[1717094188842,0.787,3804.2,3803.6,2.4825]
[1717094189037,0.787,3803.8,3803.4,2.62917]
[1717094196165,2.62886,3804.0,3803.0,2.62944]
[1717094196355,0.787,3803.3,3802.9,7.3]
[1717094196569,0.787,3803.3,3802.6,2.62972]
[1717094196866,0.787,3803.1,3802.6,2.62972]
[1717094197368,0.787,3802.9,3802.4,7.3]
[1717094199075,2.62933,3803.3,3802.4,7.3]
[1717094199076,0.787,3803.1,3802.4,7.3]
[1717094199373,0.787,3802.9,3802.4,7.3]
[1717094199727,2.62933,3803.3,3802.4,7.3]
[1717094199927,0.787,3803.1,3802.4,7.3]
[1717094200633,0.787,3803.1,3802.3,2.5575]
[1717094202611,0.787,3802.9,3802.3,2.5575]
[1717094204306,0.787,3802.9,3802.2,2.63]
[1717094204446,0.787,3802.7,3802.2,2.63]
[1717094207191,0.787,3802.9,3802.2,2.63]
[1717094207756,0.787,3802.7,3802.2,2.63]
[1717094213570,0.787,3802.7,3802.0,7.3]
[1717094213830,2.3997,3802.6,3801.9,2.7565213]
[1717094216448,0.787,3802.4,3801.9,2.7565213]
[1717094216739,3.1867,3802.6,3801.9,2.7565213]
[1717094221795,2.3997,3802.6,3802.1,2.63007]
[1717094224531,0.787,3802.5,3802.1,2.63007]
[1717094231748,0.787,3802.2,3801.9,0.1262713]
[1717094231949,2.5883,3802.1,3801.9,0.1262713]
[1717094233348,2.89243,3802.0,3801.9,0.1262713]
[1717094233844,3.67943,3802.0,3801.9,0.1262713]
[1717094234870,2.89243,3802.0,3801.9,0.1262713]
[1717094235011,3.67943,3802.0,3801.9,0.1262713]
[1717094235435,6.67943,3802.0,3801.9,0.1262713]
[1717094236503,7.5036793,3802.0,3801.9,0.1262713]
[1717094237118,6.9536793,3802.0,3801.9,0.1262713]
[1717094241948,6.1666793,3802.0,3801.9,0.1262713]
[1717094242114,6.9536793,3802.0,3801.9,0.1262713]
[1717094246723,8.27581852,3802.0,3801.9,0.1262713]
[1717094246954,8.82581852,3802.0,3801.9,0.1262713]
[1717094248065,6.9536793,3802.0,3801.9,0.1262713]
[1717094248272,6.1666793,3802.0,3801.9,0.1262713]
[1717094248562,6.9536793,3802.0,3801.9,0.1262713]
[1717094250372,6.1666793,3802.0,3801.9,0.1262713]
[1717094250543,6.9536793,3802.0,3801.9,0.1262713]
[1717094253476,2.3958,3801.9,3800.9,7.3]
[1717094253676,0.787,3801.0,3800.9,7.3]
[1717094253880,0.787,3801.0,3800.2,9.6939]
[1717094254030,0.787,3800.5,3800.2,9.6939]
[1717094255090,2.6311,3800.7,3800.2,9.6939]
[1717094255292,0.787,3800.6,3800.2,9.6939]
[1717094257663,2.63085,3801.1,3800.3,2.3955]
[1717094258189,3.41785,3801.1,3800.3,2.3955]
[1717094258395,2.63085,3801.1,3800.3,2.3955]
[1717094258747,0.787,3801.0,3800.3,2.3955]
[1717094260287,2.63085,3801.1,3800.3,2.3955]
[1717094261308,2.63085,3801.1,3800.5,2.4952]
[1717094261602,2.63058,3801.5,3800.7,2.4952]
[1717094261759,0.787,3801.4,3800.7,2.4952]
[1717094263414,0.787,3801.4,3800.8,0.05261456]
[1717094263650,2.63058,3801.5,3800.8,0.30739602]
[1717094263906,0.787,3801.4,3800.8,0.30739602]
[1717094264093,0.787,3801.4,3800.8,0.25478146]
[1717094265071,2.63058,3801.5,3800.9,2.572]
[1717094265266,0.787,3801.4,3800.9,2.572]
[1717094265512,2.63058,3801.5,3800.9,2.85467815]
[1717094265812,3.41733,3801.8,3800.9,2.85467815]
[1717094266011,2.63033,3801.8,3801.1,2.5921]
[1717094266217,2.63033,3801.8,3801.2,0.55057181]
[1717094266907,0.787,3802.0,3801.2,0.55057181]
[1717094267226,0.787,3802.0,3801.3,2.6194]
[1717094267672,0.787,3801.9,3801.3,2.6194]
[1717094268073,2.6301,3802.2,3801.3,2.6194]
[1717094268304,0.77303852,3801.9,3801.3,2.93639718]
[1717094268570,2.6301,3802.2,3801.3,2.93639718]
[1717094268781,0.787,3802.1,3801.3,2.93639718]
[1717094271533,0.787,3802.1,3801.4,2.63059]
[1717094271678,0.787,3802.1,3801.5,2.4521]
[1717094271878,0.787,3802.1,3801.5,2.99206872]
[1717094272079,2.6301,3802.2,3801.5,2.99206872]
[1717094272340,0.787,3802.1,3801.5,2.99206872]
[1717094278341,0.787,3802.1,3801.5,2.4521]
[1717094281663,0.787,3802.1,3801.6,0.4119563]
[1717094284076,2.6301,3802.2,3801.6,0.4119563]
[1717094284354,3.4171,3802.2,3801.6,0.4119563]
[1717094284563,5.62985,3802.5,3801.7,2.5169]
[1717094284782,3.41685,3802.5,3801.7,2.5169]
[1717094285107,3.41685,3802.5,3801.7,5.1473]
[1717094286720,0.787,3801.9,3801.6,0.4119563]
[1717094287629,0.787,3801.9,3801.3,2.63063]
[1717094288525,2.63014,3802.1,3801.3,2.63063]
[1717094288747,0.787,3802.0,3801.3,2.63063]
[1717094288919,3.41714,3802.1,3801.3,2.63063]
[1717094289116,2.63014,3802.1,3801.3,2.63063]
[1717094289319,2.63014,3802.1,3801.4,2.5754]
[1717094290660,0.787,3802.2,3801.5,2.63051]
[1717094293142,2.62991,3802.4,3801.5,2.63051]
[1717094293347,0.787,3802.1,3801.5,2.63051]
[1717094293576,0.787,3802.1,3801.7,2.63038]
[1717094293760,0.787,3802.3,3801.7,2.63038]
[1717094294164,2.4498,3802.7,3801.7,2.63038]
[1717094294361,0.787,3802.4,3801.7,2.63038]
[1717094294768,5.2551,3803.2,3802.2,2.63002]
[1717094295118,5.2551,3803.2,3802.3,0.602992]
[1717094295119,6.0421,3803.2,3802.3,0.602992]
[1717094295320,3.4164,3803.2,3802.3,0.602992]
[1717094295615,2.6294,3803.2,3802.5,2.4024]
[1717094296318,3.4164,3803.2,3802.4,2.62987]
[1717094296809,0.787,3803.0,3802.4,2.62987]
[1717094297017,0.787,3803.0,3802.5,0.436416]
[1717094299784,3.4164,3803.2,3802.5,0.436416]
[1717094301129,2.6257,3803.5,3802.6,2.62977]
[1717094301340,0.787,3803.3,3802.6,2.62977]
[1717094303133,0.787,3803.1,3802.6,2.62977]
[1717094309900,5.62902,3803.7,3802.8,2.4954]
[1717094310295,6.41602,3803.7,3802.8,2.4954]
[1717094311147,0.787,3803.5,3802.8,2.4954]